Cogmind - Beta 15 @@@ ROGUE MODE // 2025.05.31 @ 20:52:07 Player: Figgis Result: Destroyed by J9-FUF(R) with Subdweller Machine Gun Performance ------------- Evolutions (0) 0 Regions Visited (2) 400 Robots Destroyed (18) 90 Value Destroyed (561) 561 Prototype IDs (0) 0 Alien Tech Used (0) 0 Bonus (0) 0 TOTAL SCORE: 1051 Bonus ------- None Cogmind --------- Core Integrity 0/250 Matter 97/300 Energy 100/100 System Corruption 0% Temperature Cool (0) Movement Walking (260) Ox2 Location -10/Subcaves Parts ------- > --- POWER (1) -------- (None) > --- PROPULSION (2) --- Aluminum Leg > --- UTILITY (2) ------ Large Storage Unit Visual Processing Unit > --- WEAPON (2) ------- Shotgun > --- INVENTORY (15) --- Improved Ion Engine Improved Ion Engine Improved Ion Engine Aluminum Leg EM Pulse Gun Subdweller Laser Assault Rifle Makeshift Axe Scrap Shield Fragment (45) Peak State ------------ > --- POWER ------------ Improved Ion Engine > --- PROPULSION ------- Aluminum Leg Aluminum Leg > --- UTILITY ---------- Large Storage Unit Visual Processing Unit > --- WEAPON ----------- Shotgun Makeshift Axe > --- INVENTORY -------- Improved Ion Engine Improved Ion Engine Improved Ion Engine Aluminum Leg Aluminum Leg Aluminum Leg EM Pulse Gun Subdweller Laser Assault Rifle Shotgun Shotgun Shotgun Scrap Shield Fragment [Rating: 15] Favorites ----------- Power Improved Ion Engine Engine Improved Ion Engine Propulsion Aluminum Leg Leg Aluminum Leg Utility Visual Processing Unit Storage Large Storage Unit Processor Visual Processing Unit Weapon Shotgun Ballistic Gun Shotgun Slashing Weapon Makeshift Axe Build | -11 -10 -10 ------- Run | Yrd Mat Sub Slots Evolved . | . . . Power . | . . . Propulsion . | . . . Utility . | . . . Weapon . | . . . Parts Attached 22 | 3 13 6 Power 3 | . 2 1 Engine 3 | . 2 1 Core . | . . . Reactor . | . . . Propulsion 8 | 2 4 2 Treads . | . . . Leg 8 | 2 4 2 Wheel . | . . . Hover . | . . . Flight . | . . . Utility 4 | . 4 . Device . | . . . Storage 3 | . 3 . Processor 1 | . 1 . Hackware . | . . . Protection . | . . . Artifact . | . . . Weapon 7 | 1 3 3 Energy Gun . | . . . Energy Cannon . | . . . Ballistic Gun 6 | 1 3 2 Ballistic Cannon . | . . . Launcher . | . . . Special Weapon . | . . . Impact Weapon . | . . . Slashing Weapon 1 | . . 1 Piercing Weapon . | . . . Special Melee Weapon . | . . . Unidentified Prototypes . | . . . Parts Lost 9 | . 2 7 Power 1 | . . 1 Propulsion 5 | . 2 3 Utility . | . . . Weapon 3 | . . 3 Highest Loss Streak 4 | . 2 4 To Critical Strikes 1 | . . 1 Average Backups 9 | 3 8 10 Power 2 | 1 2 3 Propulsion 2 | . 2 2 Utility . | . . . Weapon 4 | 1 3 4 Tool/Special . | . . . Unused Backups 6 | . 2 4 Power 4 | . 2 2 Propulsion . | . . . Utility . | . . . Weapon 2 | . . 2 Tool/Special . | . . . Average Slot Usage (%) 98 | . 95 99 Engine 13 | . 13 14 Leg 27 | . 27 27 Storage 13 | . 13 14 Processor 12 | . 11 14 Ballistic Gun 26 | . 27 25 Slashing Weapon 1 | . . 2 Peak Build Rating 15 | 3 12 15 Average Rating 11 | 1 10 12 On Entrance 5 | . 3 12 Naked Turns . | . . . Heaviest Build 33 | 1 33 33 Greatest Support 20 | 3 20 20 Greatest Overweight (x) 2 | . 2 2 Average Overweight (x) . | . . 1 Largest Inventory Capacity 15 | 5 15 15 Average Capacity 13 | 5 11 15 Most Carried 13 | 5 11 13 Average Carried 9 | 3 8 10 Final Capacity 15 | 5 15 15 Final Carried 10 | 5 10 9 Class Distribution -------------------- 100% | Mutant Dominant Class ---------------- Mutant | -10/Materials Mutant | -10/Subcaves Resources | -11 -10 -10 ----------- Run | Yrd Mat Sub Matter Collected 748 | 230 408 110 Remotely . | . . . Salvage Created 640 | . 503 137 Parts 33 | . 26 7 Haulers Intercepted 1 | . 1 . Recyclers Shooed 2 | . 2 . Parts Field Recycled . | . . . Retrieved Matter . | . . . Parts Self-Destructed 2 | . . 2 Prevented . | . . . Kills | -11 -10 -10 ------- Run | Yrd Mat Sub Combat Hostiles Destroyed 13 | . 9 4 Guns 13 | . 9 4 Classes Destroyed 5 | . 4 1 Hauler 1 | . 1 . Recycler 1 | . 1 . Watcher 3 | . 3 . Grunt 9 | . 9 . Subdweller 4 | . . 4 Best Kill Streak 2 | . 2 2 Combat Bots Only 2 | . 2 2 Max Kills in Single Turn 1 | . 1 1 Gunslinging . | . . . Exploded . | . . . Melee . | . . . Uniques/NPCs Destroyed . | . . . Combat | -11 -10 -10 -------- Run | Yrd Mat Sub Hostile Shots Fired 107 | . 58 49 Missed 26 | . 16 10 Hits 81 | . 42 39 Projectile 81 | . 42 39 Critical Strikes 3 | . 1 2 Damage Taken 1414 | . 555 859 Core 253 | . 123 130 Absorbed by Shields . | . . . Core Remaining (%) 100 | 100 . . Volleys Fired 84 | . 60 24 Largest 2 | . 2 2 Hottest 46 | . 46 46 Shots Fired 159 | . 119 40 Gun 159 | . 119 40 Cannon . | . . . Launcher . | . . . Special . | . . . Kinetic 159 | . 119 40 Thermal . | . . . Explosive . | . . . Electromagnetic . | . . . Robot Hit Streak 11 | . 7 11 Robot Miss Streak 5 | . 5 1 Penetration Max . | . . . Secondary Targets 1 | . 1 . Max Gunslinging Chain 1 | . 1 . Shots Hit Robots 116 | . 81 35 Core Hits 44 | . 31 13 Critical Kills . | . . . Critical Parts Destroyed 3 | . 2 1 Critical Strikes 3 | . 2 1 Destroy 3 | . 2 1 Melee Attacks 5 | . . 5 Impact . | . . . Slashing 5 | . . 5 Piercing . | . . . Sneak Attacks . | . . . Combat Hostiles . | . . . Follow-up Attacks . | . . . Damage Inflicted 1606 | . 1124 482 Guns 1606 | . 1124 482 Cannons . | . . . Explosions . | . . . Melee . | . . . Ramming . | . . . Kinetic 1606 | . 1124 482 Thermal . | . . . Explosive . | . . . Electromagnetic . | . . . Impact . | . . . Slashing . | . . . Piercing . | . . . Highest Corruption . | . . . Average Corruption . | . . . Corruption Purged . | . . . Corruption Blocked . | . . . Overload Shots . | . . . Overflow Damage . | . . . Projectiles . | . . . Explosions . | . . . Melee . | . . . Knockbacks . | . . . Impact . | . . . Kinetic . | . . . Secondary . | . . . Self-Inflicted Damage . | . . . Shots . | . . . Rammed . | . . . Targets Rammed . | . . . Kicked . | . . . Crushed . | . . . Highest Temperature 271 | . 27 271 Average Temperature 34 | . 7 141 Received Heat Transfer 814 | . 330 484 Siege Activations . | . . . Martial Activations . | . . . Shielding Activations . | . . . Robots Disrupted . | . . . Combat Hostiles . | . . . Robots Corrupted . | . . . Combat Hostiles . | . . . Parts Fried . | . . . Impact Corruptions . | . . . Robots Melted . | . . . Combat Hostiles . | . . . Parts Melted . | . . . Heat Transferred . | . . . Parts Sabotaged . | . . . Parts Stolen . | . . . Parts Stripped . | . . . Power Chain Reactions . | . . . Alert | -11 -10 -10 ------- Run | Yrd Mat Sub Maximum Alert Level . | . . . Low Security (%) 100 | 100 100 . Level 1 . | . . . Level 2 . | . . . Level 3 . | . . . Level 4 . | . . . Level 5 . | . . . High Security . | . . . Max Security . | . . . Peak Influence 108 | . 108 . Initial . | . . . Average 22 | . 23 . Influence Increases 350 | . 350 . Destroy 0b10 Robot/C 180 | . 180 . Destroy 0b10 Robot/NC 25 | . 25 . Destroy Leader 58 | . 58 . Successful Hack 12 | . 12 . Lose Combat Pursuer 75 | . 75 . Influence Decreases 350 | . 263 87 Entered New Map 43 | . . 43 Time Decay 287 | . 243 44 Lost Part 20 | . 20 . Squads Dispatched 3 | . 3 . Investigation . | . . . Extermination . | . . . Reinforcement 3 | . 3 . Assault . | . . . Garrison . | . . . Intercept . | . . . Searches Triggered . | . . . Construction Impeded . | . . . Haulers Reinforced . | . . . Active Scanning Responses . | . . . Cargo Convoy Interrupts . | . . . Stealth | -11 -10 -10 --------- Run | Yrd Mat Sub Distress Signals . | . . . Communications Jammed . | . . . Distress Signals . | . . . Times Spotted 30 | . 25 5 Peak Tracking Total 4 | . 4 2 Tactical Retreats 5 | . 5 . Traps | -11 -10 -10 ------- Run | Yrd Mat Sub Traps Triggered 2 | . 2 . Indirectly . | . . . Trap Hack Attempts . | . . . Triggered . | . . . Disarmed . | . . . Reprogrammed . | . . . Reused . | . . . Traps Extracted . | . . . Installed . | . . . Triggered . | . . . Machines | -11 -10 -10 ---------- Run | Yrd Mat Sub Machines Disabled . | . . . Max in Single Turn . | . . . Machines Repaired . | . . . Machines Dismantled . | . . . Machines Sabotaged . | . . . Overloaded Fab Kills . | . . . Hacking | -11 -10 -10 --------- Run | Yrd Mat Sub Machines Accessed 3 | . 2 1 Terminals 2 | . 2 . Fabricators . | . . . Repair Stations . | . . . Recycling Units . | . . . Scanalyzers . | . . . Garrison Access . | . . . Total Hacks 10 | . 7 3 Successful 6 | . 3 3 Failed 4 | . 4 . Catastrophic 1 | . 1 . Database Lockouts . | . . . Manual 6 | . 6 . Terminals 7 | . 7 . Fabricators . | . . . Repair Stations . | . . . Recycling Units . | . . . Scanalyzers . | . . . Garrison Access . | . . . Terminal Hacks 6 | . 3 3 Record 3 | . . 3 Robot Analysis 3 | . 3 . Fabricator Hacks . | . . . Repair Station Hacks . | . . . Recycling Unit Hacks . | . . . Scanalyzer . | . . . Garrison Access Hacks . | . . . Unauthorized Hacks . | . . . Terminals . | . . . Fabricators . | . . . Repair Stations . | . . . Recycling Units . | . . . Scanalyzers . | . . . Garrison Access . | . . . Data Cores Recovered . | . . . Used . | . . . Hacking Detections 2 | . 2 . Full Trace Events . | . . . Feedback Events . | . . . Feedback Blocked . | . . . Robot Schematics Acquired . | . . . Robots Built . | . . . Authchips . | . . . Time . | . . . Total Robot Build Rating . | . . . Part Schematics Acquired . | . . . Parts Built . | . . . Authchips . | . . . Time . | . . . Total Part Build Rating . | . . . Parts Repaired . | . . . Time . | . . . Parts Recycled . | . . . Recycled Matter . | . . . Retrieved Matter . | . . . Retrieved Components . | . . . Parts Scanalyzed . | . . . Part Schematics Acquired . | . . . Parts Damaged . | . . . Bothacking | -11 -10 -10 ------------ Run | Yrd Mat Sub Used RIF Installer . | . . . Robots Hacked . | . . . Non-combat . | . . . Combat . | . . . Robot Hacks Applied . | . . . Relay Couplers Released . | . . . Fabnet Peak Effective % . | . . . Robots Rewired . | . . . Allies Hacked . | . . . Hacks Repelled . | . . . Allies | -11 -10 -10 -------- Run | Yrd Mat Sub Total Allies . | . . . Largest Group . | . . . Highest-Rated Group . | . . . Highest-Rated Ally . | . . . Total Orders . | . . . Ally Attacks . | . . . Total Damage . | . . . Kills . | . . . Allies Corrupted . | . . . Allies Melted . | . . . Intel | -11 -10 -10 ------- Run | Yrd Mat Sub Active Infowar (turns) 2168 | . 788 1380 Optics 2168 | . 788 1380 Robot Analysis Total 3 | . 3 . Derelict Logs Recovered . | . . . Drone Launches . | . . . Drone Recoveries . | . . . Exploration | -11 -10 -10 ------------- Run | Yrd Mat Sub Turns Passed 2397 | 29 988 1380 Spaces Moved 1082 | 35 438 609 Core 48 | 35 13 . Treads . | . . . Legs 1034 | . 425 609 Wheels . | . . . Hover . | . . . Flight . | . . . Fastest Speed 50 | 50 50 190 Average Speed 174 | 50 163 190 Slowest Speed 260 | 50 260 260 Overloaded Moves . | . . . Propulsion Burnouts . | . . . Robots Hopped . | . . . Potential Cave-ins . | . . . Cave-ins Triggered . | . . . Exploration Rate (%) 38 | 2 79 33 Regions Visited 2 Branch Regions 1 Pre-discovered Areas . | . . . Known Exits Taken . | . . . Unknown Exits Taken 2 | 1 1 . Scrap Searched . | . . . Spaces Dug 5 | . . 5 Terrain Destroyed 5 | . . 5 Melee 5 | . . 5 Projectile . | . . . AOE . | . . . Terrain Rammed . | . . . Walls Destroyed . | . . . Machines Disabled . | . . . Actions | -11 -10 -10 --------- Run | Yrd Mat Sub Total 1428 | 45 599 784 Wait 198 | . 64 134 Move 1080 | 34 437 609 Hop . | . . . Pick Up 27 | 8 16 3 Fast Attach 2 | . 2 . Attach 14 | 3 7 4 Detach . | . . . Swap 11 | . 6 5 Drop 7 | . 7 . Fire 84 | . 60 24 Melee 5 | . . 5 Ram . | . . . Kick . | . . . Crush . | . . . Escape Stasis . | . . . Rewire . | . . . Trap . | . . . Miscellaneous . | . . . Route ------- -11/Scrapyard -10/Materials (discovered 3 exits: [*Mat x2] / *Sub) -10/Subcaves History --------- Turn | Location | Event 14 | -11/Scrapyard | Discovered new exit (range 15) 30 | -11/Scrapyard | Entered Materials 315 | -10/Materials | Build established: Mutant 514 | -10/Materials | Discovered new exit (range 10) 709 | -10/Materials | Discovered new exit (range 11) 1007 | -10/Materials | Discovered new exit (range 7) 1018 | -10/Materials | Entered Subcaves 1019 | -10/Subcaves | Approached by a straggling Scientist 1186 | -10/Subcaves | Shifting Twisted Machinery released Sub. Machine Gun 1217 | -10/Subcaves | A swath of the cavern ceiling suddenly collapsed 1533 | -10/Subcaves | Visited Clippyterm 1539 | -10/Subcaves | Learned Factory trap positions 1620 | -10/Subcaves | Shifting Twisted Machinery released Mak. Axe 1910 | -10/Subcaves | Core integrity fell below 50% 2107 | -10/Subcaves | Core integrity fell below 20% 2149 | -10/Subcaves | Lost 3 parts (2n1w) 2398 | -10/Subcaves | Destroyed by J9-FUF(R) with Subdweller Machine Gun Last Messages --------------- 02118_ Aluminum Leg destroyed. 02119_ 6T-X5Z(R) destroyed. 02122_ DB-1ZL(R) destroyed. 02123_ Acquired 32 matter. 02127_ Subatomizers dissect the Disposable Heat Sink. 02128_ Acquired 45 matter. 02139_ Subatomizers dissect the Disposable Heat Sink. 3W-YNZ(c): "I think it's somewhere south of here" 3W-YNZ(c): "I think it's somewhere southeast of here" 02376_ Shotgun destroyed. 02378_ Aluminum Leg destroyed. 02382_ Critical hit (Destroy). 02382_ Shotgun destroyed. 02384_ O8-Y9M(R) destroyed. 02391_ Subatomizers dissect the Disposable Heat Sink. 02392_ J9-FUF(R) suffers critical hit (Destroy). 02392_ Destroyed Sub. Power Source. 3W-YNZ(c): "I think it's somewhere southeast of here" 02395_ J9-FUF(R) affixes Scrap Shield Fragment to Scrap Shield. 02396_ Imp. Ion Engine destroyed. Map ----- +----------------------------------------------------+ | #####?#### ### #????????????????????## | | ?????## ####### ##?????????????????????# | | ??#### ##?????#####??????????????????????## | | ??# ##???????????????????????????????## | | ??# #???????????????????????????????# # | | ??# ##???????????????????????????????# # | | ## ##????????????????????????????????## | | ####??#########????????????????????# | | #### # ##???????????????????# | | ## ##??????????????????# | | #?# #??????????????????# | | ### ##?????????????????## | | ### ## ## ## #?????????????????# | | ??#####?##### # # ##?????????????????### | | ????????????## #???????????????????# | | ?????????????# ##???????????????????? | | ???????????# ## ## #???????????????????? | | ???????????## ### ######???????????????????? | | ????????????#### ### ##????????????????????????? | | ???????????????###?## ##???????????????????????? | | ??????????????????### #???????????????????????? | | ??????????????????# c #??##???????????????????? | | ??????????????????# ##?# #???????????????????? | | ??????????????????## ###! ##??????????????????? | | ?????????????????### &%R #??????????????????? | | ?????????????????# @&= #??????????????????? | | ????????? #?????????????????? | | ???????? ##?????????????????? | | ???????? ## #### #??????????????????? | | ????????? ???# ##???? #?????????????????? | | ????????#?????# #??????#?????????????????? | | ??????????????#### ##????????????????????????? | | ?????????????????#######?????????????????????????? | | ?????????????????????????????????????????????????? | | ?????????????????????????????????????????????????? | | ?????????????????????????????????????????????????? | | ?????????????????????????????????????????????????? | | ?????????????????????????????????????????????????? | | ?????????????????????????????????????????????????? | | ?????????????????????????????????????????????????? | | ?????????????????????????????????????????????????? | | ?????????????????????????????????????????????????? | | ?????????????????????????????????????????????????? | | ?????????????????????????????????????????????????? | | ?????????????????????????????????????????????????? | | ?????????????????????????????????????????????????? | | ?????????????????????????????????????????????????? | | ?????????????????????????????????????????????????? | | ?????????????????????????????????????????????????? | | ?????????????????????????????????????????????????? | +----------------------------------------------------+ Best States ------------- Heat Dissipation 25 Energy Generation 12 Energy Capacity 265 Matter Stores 300 Matter Capacity 300 Sight Range 18 Terrain Scan Density 10 Evasion (%) 55 Item Schematics ----------------- None Robot Schematics ------------------ None Fabricated ------------ Nothing Repaired ---------- Nothing Alien Tech Used ----------------- None Achievements -------------- None Challenges ------------ None Game ------ Seed NeutronShadingMesh Manual? 0 Play Time 00:14:34 Cumulative 169.1 hours Start 2025.05.31 @ 20:40:27 End 2025.05.31 @ 20:52:07 Sessions 1 Manual Loads 0 Difficulty Rogue Special Mode None Game No. 260 Rogue 257 Adventurer 3 Explorer 0 Win Type - Total 1 Types 1/0/0/0/0/0/0/0/0/0 Lore% 57 Gallery% 57 Achievement% 45 Wizard Run 0 Options --------- Layout 0 ASCII 0 Keyboard 0 Movement Mouse Keybinds 0 Fullscreen 2 Font 18/SmallcapsGlow Map View 76x50 Zoom Use 0% Tactical HUD 1 Map Filters NONE Filters NONE Steam 1 RUN: 1d5f48cc-d754-40cc-8a79-4e2793f6e45f